fUST/lending_fUST_20250705
["ID","MTS","AMOUNT","RATE_DAILY","PERIOD"]
[369705194,1751706656578,-316.41144259,0.00019726,2]
[369705195,1751706656587,-460.0,0.00019726,2]
[369705196,1751706656596,-460.0,0.00019726,2]
[369705197,1751706656606,-500.0,0.00019726,2]
[369705198,1751706656615,-833.0,0.00019753,2]
[369705199,1751706656625,-572.0,0.00019753,2]
[369705200,1751706656635,-833.0,0.00019781,2]
[369705201,1751706656645,-572.0,0.00019781,2]
[369705202,1751706656655,-151.0,0.000198,2]
[369705203,1751706656666,-840.73739429,0.00019808,2]
[369705204,1751706656676,-588.0,0.00019808,2]
[369705205,1751706656686,-732.7163822,0.00019836,2]
[369705206,1751706656695,-188.2348432,0.00019836,2]
[369705207,1751706656704,-160.0,0.00019849,2]
[369705208,1751706656714,-160.0,0.00019849,2]
[369705209,1751706656723,-215.14521394,0.00019849,2]
[369705210,1751706656733,-12580.16877015,0.00019849,2]
[369705211,1751706656742,-230.42616721,0.00019849,2]
[369705212,1751706656752,-160.0,0.00019849,2]
[369705213,1751706656761,-160.0,0.00019849,2]
[369705214,1751706656771,-160.0,0.00019849,2]
[369705215,1751706656780,-837.5764301,0.00019849,2]
[369705216,1751706656789,-848.02350475,0.00019849,2]
[369705217,1751706656798,-91.22278516,0.00019865,2]
[369705218,1751706657218,-151.0,0.00019178,2]
[369705219,1751706657227,-460.0,0.00019178,2]
[369705220,1751706657236,-782.39,0.00019178,2]
[369705221,1751706657246,-385.8209304,0.00019178,2]
[369705222,1751706657257,-74.1790696,0.00019178,2]
[369705223,1751706657266,-186.53348416,0.00019205,2]
[369705224,1751706657276,-460.0,0.00019452,2]
[369705225,1751706657286,-782.39,0.00019452,2]
[369705226,1751706657295,-460.0,0.00019452,2]
[369705227,1751706657305,-151.0,0.00019726,2]
[369705228,1751706657315,-460.0,0.00019726,2]
[369705229,1751706657324,-460.0,0.00019726,2]
[369705230,1751706657334,-137.35181416,0.00019726,2]
[369705231,1751706657349,-456.47563208,0.00019726,2]
[369705232,1751706657361,-188.56255376,0.00019726,2]
[369705233,1751706657370,-59.77721484,0.00019865,2]
[369705234,1751706657379,-9132.51903518,0.000199,2]
[369705235,1751706657388,-205.49733556,0.000199,2]
[369705236,1751706657398,-1427.63946218,0.00019968,2]
[369705237,1751706657407,-1500.0,0.00019968,2]
[369705238,1751706657416,-1500.0,0.00019968,2]
[369705239,1751706657426,-470.76553041,0.00019968,2]
[369705240,1751706657436,-1500.0,0.00019968,2]
[369705241,1751706657445,-1500.0,0.00019968,2]
[369705242,1751706657455,-1500.0,0.00019968,2]
[369705243,1751706657464,-174.845258,0.00019974,2]
[369705244,1751706657473,-151.0,0.0002,2]
[369705245,1751706657482,-460.0,0.0002,2]
[369705246,1751706657492,-500.0,0.0002,2]
[369705247,1751706657502,-151.0,0.0002,2]
[369705248,1751706657512,-151.0,0.0002,2]
[369705249,1751706657521,-423.15,0.0002,2]
[369705250,1751706657531,-151.0,0.0002,2]
[369705251,1751706657540,-151.0,0.0002,2]
[369705252,1751706657549,-460.0,0.0002,2]
[369705253,1751706657558,-460.0,0.0002,2]
[369705254,1751706657568,-151.0,0.0002,2]
[369705255,1751706657578,-184.16,0.0002,2]
[369705256,1751706657587,-151.0,0.0002,2]
[369705257,1751706657596,-460.0,0.0002,2]
[369705258,1751706657606,-169.97,0.0002,2]
[369705259,1751706657615,-460.0,0.0002,2]
[369705260,1751706657623,-460.0,0.0002,2]
[369705261,1751706657632,-556.47,0.0002,2]
[369705262,1751706657641,-382.03,0.0002,2]
[369705263,1751706657651,-155.41,0.0002,2]
[369705264,1751706657660,-460.0,0.0002,2]
[369705265,1751706657669,-185.93,0.0002,2]
[369705266,1751706657678,-460.0,0.0002,2]
[369705267,1751706657688,-562.18,0.0002,2]
[369705268,1751706657698,-157.45,0.0002,2]
[369705269,1751706657707,-671.96,0.0002,2]
[369705270,1751706657717,-261.72,0.0002,2]
[369705271,1751706657726,-460.0,0.0002,2]
[369705272,1751706657735,-460.0,0.0002,2]
[369705273,1751706657745,-460.0,0.0002,2]
[369705274,1751706657754,-460.0,0.0002,2]
[369705275,1751706657763,-460.0,0.0002,2]
[369705276,1751706657772,-583.05,0.0002,2]
[369705277,1751706657782,-460.0,0.0002,2]
[369705278,1751706657791,-460.0,0.0002,2]
[369705279,1751706657800,-460.0,0.0002,2]
[369705280,1751706657810,-584.65,0.0002,2]
[369705281,1751706657820,-173.49,0.0002,2]
[369705282,1751706657829,-460.0,0.0002,2]
[369705283,1751706657843,-460.0,0.0002,2]
[369705284,1751706657853,-520.03347722,0.0002,2]
[369705285,1751706657863,-460.0,0.0002,2]
[369705286,1751706657872,-460.0,0.0002,2]
[369705287,1751706657882,-460.0,0.0002,2]
[369705288,1751706657892,-460.0,0.0002,2]
[369705289,1751706657901,-563.01,0.0002,2]
[369705290,1751706657918,-189.18,0.0002,2]
[369705291,1751706657928,-460.0,0.0002,2]
[369705292,1751706657943,-460.0,0.0002,2]
[369705293,1751706657960,-460.0,0.0002,2]
[369705294,1751706657975,-460.0,0.0002,2]
[369705295,1751706657990,-549.62,0.0002,2]
[369705296,1751706658007,-460.0,0.0002,2]
[369705297,1751706658024,-460.0,0.0002,2]
[369705298,1751706658041,-476.06,0.0002,2]
[369705299,1751706658058,-460.0,0.0002,2]
[369705300,1751706658074,-533.16,0.0002,2]
[369705301,1751706658088,-460.0,0.0002,2]
[369705302,1751706658102,-460.0,0.0002,2]
[369705303,1751706658117,-460.0,0.0002,2]
[369705304,1751706658132,-460.0,0.0002,2]
[369705305,1751706658144,-460.0,0.0002,2]
[369705306,1751706658156,-460.0,0.0002,2]
[369705307,1751706658169,-460.0,0.0002,2]
[369705308,1751706658183,-460.0,0.0002,2]
[369705309,1751706658197,-460.0,0.0002,2]
[369705310,1751706658212,-601.48,0.0002,2]
[369705311,1751706658227,-460.0,0.0002,2]
[369705312,1751706658242,-485.46,0.0002,2]
[369705313,1751706658253,-460.0,0.0002,2]
[369705314,1751706658265,-460.0,0.0002,2]
[369705315,1751706658278,-460.0,0.0002,2]
[369705316,1751706658293,-460.0,0.0002,2]
[369705317,1751706658305,-152.78213242,0.0002,2]
[369705318,1751706658319,-264.89,0.0002,2]
[369705319,1751706658333,-494.18,0.0002,2]
[369705320,1751706658344,-572.76,0.0002,2]
[369705321,1751706658355,-460.0,0.0002,2]
[369705322,1751706658367,-460.0,0.0002,2]
[369705323,1751706658379,-460.0,0.0002,2]
[369705324,1751706658393,-460.0,0.0002,2]
[369705325,1751706658405,-460.0,0.0002,2]
[369705326,1751706658417,-460.0,0.0002,2]
[369705327,1751706658430,-460.0,0.0002,2]
[369705328,1751706658442,-460.0,0.0002,2]
[369705329,1751706658455,-157.9,0.0002,2]
[369705330,1751706658467,-3548.62,0.0002,2]
[369705331,1751706658479,-460.0,0.0002,2]
[369705332,1751706658492,-460.0,0.0002,2]
[369705333,1751706658507,-460.0,0.0002,2]
[369705334,1751706658520,-460.0,0.0002,2]
[369705335,1751706658532,-460.0,0.0002,2]
[369705336,1751706658544,-467.74,0.0002,2]
[369705337,1751706658556,-460.0,0.0002,2]
[369705338,1751706658569,-460.0,0.0002,2]
[369705339,1751706658581,-460.0,0.0002,2]
[369705340,1751706658594,-460.0,0.0002,2]
[369705341,1751706658607,-813.46,0.0002,2]
[369705342,1751706658619,-460.0,0.0002,2]
[369705343,1751706658632,-1163.39,0.0002,2]
[369705344,1751706658646,-493.57,0.0002,2]
[369705345,1751706658660,-850.66,0.0002,2]
[369705346,1751706658672,-322.03,0.0002,2]
[369705347,1751706658685,-1583.23,0.0002,2]
[369705348,1751706658698,-460.0,0.0002,2]
[369705349,1751706658710,-460.0,0.0002,2]
[369705350,1751706658723,-460.0,0.0002,2]
[369705351,1751706658736,-594.21,0.0002,2]
[369705352,1751706658746,-235.34,0.0002,2]
[369705353,1751706658755,-2654.08,0.0002,2]
[369705354,1751706658764,-460.0,0.0002,2]
[369705355,1751706658773,-3329.76,0.0002,2]
[369705356,1751706658783,-1113.13,0.0002,2]
[369705357,1751706658793,-460.0,0.0002,2]
[369705358,1751706658803,-359.59,0.0002,2]
[369705359,1751706658813,-463.65,0.0002,2]
[369705360,1751706658822,-460.0,0.0002,2]
[369705361,1751706658831,-526.26,0.0002,2]
[369705362,1751706658845,-225.95,0.0002,2]
[369705363,1751706658854,-460.0,0.0002,2]
[369705364,1751706658863,-437.71,0.0002,2]
[369705365,1751706658872,-460.0,0.0002,2]
[369705366,1751706658882,-460.0,0.0002,2]
[369705367,1751706658890,-460.0,0.0002,2]
[369705368,1751706658899,-620.09,0.0002,2]
[369705369,1751706658908,-226.83,0.0002,2]
[369705370,1751706658918,-460.0,0.0002,2]
[369705371,1751706658928,-460.0,0.0002,2]
[369705372,1751706658938,-460.0,0.0002,2]
[369705373,1751706658949,-703.49,0.0002,2]
[369705374,1751706658959,-182.11,0.0002,2]
[369705375,1751706658968,-1789.76,0.0002,2]
[369705376,1751706658978,-460.0,0.0002,2]
[369705377,1751706658988,-708.28,0.0002,2]
[369705378,1751706658997,-460.0,0.0002,2]
[369705379,1751706659007,-568.7,0.0002,2]
[369705380,1751706659017,-460.0,0.0002,2]
[369705381,1751706659027,-460.0,0.0002,2]
[369705382,1751706659037,-460.0,0.0002,2]
[369705383,1751706659047,-211.81,0.0002,2]
[369705384,1751706659057,-221.98,0.0002,2]
[369705385,1751706659067,-463.86,0.0002,2]
[369705386,1751706659076,-3611.87,0.0002,2]
[369705387,1751706659086,-1503.27,0.0002,2]
[369705388,1751706659096,-1403.32,0.0002,2]
[369705389,1751706659105,-460.0,0.0002,2]
[369705390,1751706659115,-460.0,0.0002,2]
[369705391,1751706659125,-166.65862145,0.0002,2]
[369705392,1751706659759,-460.0,0.00019178,2]
[369705393,1751706659771,-448.92186136,0.00019178,2]
[369705394,1751706659784,-11.07813864,0.00019178,2]
[369705395,1751706659794,-151.0,0.00019452,2]
[369705396,1751706659804,-151.0,0.00019726,2]
[369705397,1751706659814,-391.27137855,0.0002,2]
[369705398,1751706659824,-2324.29,0.0002,2]
[369705399,1751706659833,-151.0,0.0002,2]
[369705400,1751706659846,-460.0,0.0002,2]
[369705401,1751706659857,-460.0,0.0002,2]
[369705402,1751706659867,-460.0,0.0002,2]
[369705403,1751706659876,-460.0,0.0002,2]
[369705404,1751706659886,-237.21,0.0002,2]
[369705405,1751706659896,-460.0,0.0002,2]
[369705406,1751706659905,-3534.46,0.0002,2]
[369705407,1751706659916,-460.0,0.0002,2]
[369705408,1751706659925,-460.0,0.0002,2]
[369705409,1751706659935,-460.0,0.0002,2]
[369705410,1751706659944,-576.44,0.0002,2]
[369705411,1751706659954,-596.82814661,0.0002,2]
[369705412,1751706659964,-196.05,0.0002,2]
[369705413,1751706659974,-460.0,0.0002,2]
[369705414,1751706659983,-460.0,0.0002,2]
[369705415,1751706659993,-460.0,0.0002,2]
[369705416,1751706660002,-460.0,0.0002,2]
[369705417,1751706660013,-1415.13,0.0002,2]
[369705418,1751706660023,-460.0,0.0002,2]
[369705419,1751706660033,-253.54,0.0002,2]
[369705420,1751706660043,-460.0,0.0002,2]
[369705421,1751706660053,-542.99,0.0002,2]
[369705422,1751706660062,-460.0,0.0002,2]
[369705423,1751706660072,-460.0,0.0002,2]
[369705424,1751706660082,-1471.28,0.0002,2]
[369705425,1751706660091,-460.0,0.0002,2]
[369705426,1751706660101,-925.77,0.0002,2]
[369705427,1751706660111,-271.82,0.0002,2]
[369705428,1751706660120,-460.0,0.0002,2]
[369705429,1751706660129,-460.0,0.0002,2]
[369705430,1751706660138,-183.55,0.0002,2]
[369705431,1751706660147,-560.69419758,0.0002,2]
[369705432,1751706660160,-7.59580242,0.0002,2]
[369705433,1751706660169,-347.73954214,0.0002,2]
[369705434,1751706660181,-152.26045786,0.0002,2]
[369705435,1751706660190,-144.17861372,0.0002,2]
[369705436,1751706660448,-315.82138628,0.0002,2]
[369705437,1751706660458,-460.0,0.0002,2]
[369705438,1751706660468,-1234.68068766,0.0002,2]
[369705439,1751706660481,-7.83931234,0.0002,2]
[369705440,1751706660491,-460.0,0.0002,2]
[369705441,1751706660502,-460.0,0.0002,2]
[369705442,1751706660511,-460.0,0.0002,2]
[369705443,1751706660521,-460.0,0.0002,2]
[369705444,1751706660530,-460.0,0.0002,2]
[369705445,1751706660539,-460.0,0.0002,2]
[369705446,1751706660549,-494.81,0.0002,2]
[369705447,1751706660558,-402.10068666,0.0002,2]
[369705448,1751706660569,-19.90931334,0.0002,2]
[369705449,1751706660578,-482.76,0.0002,2]
[369705450,1751706660588,-500.0,0.0002,2]
[369705451,1751706660597,-315.73067466,0.0002,2]
[369705452,1751706660832,-386.36914886,0.00019178,2]
[369705453,1751706660844,-460.0,0.00019178,2]
[369705454,1751706660853,-460.0,0.00019452,2]
[369705455,1751706660863,-144.26932534,0.0002,2]
[369705456,1751706660871,-460.0,0.0002,2]
[369705457,1751706660881,-529.3,0.0002,2]
[369705458,1751706660889,-568.22,0.0002,2]
[369705459,1751706660899,-136.74356582,0.0002,2]
[369705460,1751706660913,-323.25643418,0.0002,2]
[369705461,1751706660923,-31.4108895,0.0002,2]
[369705462,1751706660935,-428.5891105,0.0002,2]
[369705463,1751706660945,-515.31,0.0002,2]
[369705464,1751706660954,-460.0,0.0002,2]
[369705465,1751706660962,-227.11569824,0.0002,2]
[369705466,1751706734560,-300.0,0.00018775,2]
[369705467,1751706734581,-1539.0,0.00018776,2]
[369705472,1751706931074,-255.0,0.00017243,2]
[369705473,1751706931094,-181.33158459,0.00017349,2]
[369705474,1751706931115,-220.66841541,0.0001751,2]
[369705480,1751707062558,-216.47900887,0.00017429,2]
[369705481,1751707062579,-15.52099113,0.0001751,2]
[369705483,1751707187800,-6.94302864,0.0001751,2]
[369705487,1751707339625,460.0,0.00024678,60]
[369705500,1751707503194,5682.0,0.000158,2]
[369705512,1751707555601,-166.0,0.00017811,2]
[369705513,1751707555629,-1200.0,0.00017967,2]
[369705514,1751707555657,-300.0,0.00017968,2]
[369705515,1751707555685,-300.0,0.00017968,2]
[369705516,1751707555716,-300.0,0.00017968,2]
[369705517,1751707555745,-300.0,0.00017968,2]
[369705518,1751707555774,-1200.0,0.00017968,2]
[369705519,1751707555988,-7207.53240588,0.00017969,2]
[369705524,1751707560736,-10000.0,0.00017969,2]
[369705525,1751707560871,-2307.53240588,0.00017969,2]
[369705526,1751707560895,-5384.93518824,0.00017969,2]
[369705604,1751707726113,301.999999,0.00024698,120]
[369705606,1751707728103,210.11699838,0.00016,2]
[369705683,1751707833223,-3446.8251939,0.00018396,2]
[369705684,1751707833236,-1553.1748061,0.00018396,2]
[369705685,1751707833251,-160.0,0.00018768,2]
[369705686,1751707833262,-469.0,0.00018775,2]
[369705687,1751707833273,-167.8251939,0.00018775,2]
[369705688,1751707833284,-321.06130044,0.00018775,2]
[369705719,1751707838306,-453.5423667,0.00018775,2]
[369705721,1751707838317,-257.57113896,0.00018775,2]
[369705723,1751707838327,-300.0,0.00018775,2]
[369705725,1751707838336,-300.0,0.00018775,2]
[369705727,1751707838345,-168.0,0.00018775,2]
[369705729,1751707838355,-488.30739111,0.00018776,2]
[369705731,1751707838367,-3809.32322849,0.00018776,2]
[369705735,1751707838458,-38105.29675234,0.00018776,2]
[369705736,1751707838468,-150.0,0.000189,2]
[369705737,1751707838477,-1124.58738423,0.00019078,2]
[369705738,1751707838487,-1124.5873842,0.00019147,2]
[369705739,1751707838496,-188.15729999,0.00019166,2]
[369705740,1751707838505,-500.0,0.00019169,2]
[369705741,1751707838515,-500.0,0.00019169,2]
[369705742,1751707838525,-500.0,0.00019169,2]
[369705743,1751707838534,-500.0,0.00019169,2]
[369705744,1751707838543,-500.0,0.00019169,2]
[369705745,1751707838552,-500.0,0.00019169,2]
[369705746,1751707838562,-500.0,0.00019169,2]
[369705747,1751707838571,-500.0,0.00019169,2]
[369705748,1751707838579,-500.0,0.00019169,2]
[369705749,1751707838589,-500.0,0.00019169,2]
[369705750,1751707838598,-500.0,0.00019169,2]
[369705751,1751707838607,-500.0,0.00019169,2]
[369705752,1751707838618,-500.0,0.00019169,2]
[369705753,1751707838627,-500.0,0.00019169,2]
[369705754,1751707838636,-500.0,0.00019169,2]
[369705755,1751707838645,-563.29380992,0.00019169,2]
[369705756,1751707838654,-500.0,0.00019169,2]
[369705757,1751707838664,-500.0,0.00019169,2]
[369705758,1751707838673,-500.0,0.00019169,2]
[369705759,1751707838682,-500.0,0.00019169,2]
[369705760,1751707838691,-500.0,0.00019169,2]
[369705761,1751707838700,-300.0,0.00019169,2]
[369705762,1751707838709,-350.0,0.00019169,2]
[369705763,1751707838718,-500.0,0.00019169,2]
[369705764,1751707838727,-500.0,0.00019169,2]
[369705765,1751707838737,-500.0,0.00019169,2]
[369705766,1751707838746,-500.0,0.00019169,2]
[369705767,1751707838755,-500.0,0.00019169,2]
[369705768,1751707838767,-500.0,0.00019169,2]
[369705769,1751707838776,-500.0,0.00019169,2]
[369705770,1751707838786,-500.0,0.00019169,2]
[369705771,1751707838795,-500.0,0.00019169,2]
[369705772,1751707838804,-462.45404329,0.00019169,2]
[369705773,1751707838813,-500.0,0.00019169,2]
[369705774,1751707838823,-500.0,0.00019169,2]
[369705775,1751707838832,-500.0,0.00019169,2]
[369705776,1751707838843,-500.0,0.00019169,2]
[369705777,1751707838852,-500.0,0.00019169,2]
[369705778,1751707838861,-500.0,0.00019169,2]
[369705779,1751707838871,-500.0,0.00019169,2]
[369705780,1751707838879,-500.0,0.00019169,2]
[369705781,1751707838889,-500.0,0.00019169,2]
[369705782,1751707838898,-500.0,0.00019169,2]
[369705783,1751707838907,-500.0,0.00019169,2]
[369705784,1751707838916,-500.0,0.00019169,2]
[369705785,1751707838925,-500.0,0.00019169,2]
[369705786,1751707838934,-500.0,0.00019169,2]
[369705787,1751707838943,-500.0,0.00019169,2]
[369705788,1751707838951,-521.54070557,0.00019169,2]
[369705789,1751707838961,-500.0,0.00019169,2]
[369705790,1751707838970,-500.0,0.00019169,2]
[369705791,1751707838979,-500.0,0.00019169,2]
[369705792,1751707838988,-500.0,0.00019169,2]
[369705793,1751707838997,-500.0,0.00019169,2]
[369705794,1751707839007,-500.0,0.00019169,2]
[369705795,1751707839016,-405.66750193,0.00019169,2]
[369705796,1751707839025,-500.0,0.00019169,2]
[369705797,1751707839034,-500.0,0.00019169,2]
[369705798,1751707839043,-500.0,0.00019169,2]
[369705799,1751707839052,-500.0,0.00019169,2]
[369705800,1751707839061,-500.0,0.00019169,2]
[369705801,1751707839070,-500.0,0.00019169,2]
[369705802,1751707839080,-500.0,0.00019169,2]
[369705803,1751707839089,-500.0,0.00019169,2]
[369705804,1751707839098,-500.0,0.00019169,2]
[369705805,1751707839107,-500.0,0.00019169,2]
[369705806,1751707839116,-500.0,0.00019169,2]
[369705807,1751707839125,-500.0,0.00019169,2]
[369705808,1751707839133,-500.0,0.00019169,2]
[369705809,1751707839142,-500.0,0.00019169,2]
[369705810,1751707839151,-500.0,0.00019169,2]
[369705811,1751707839160,-500.0,0.00019169,2]
[369705812,1751707839170,-500.0,0.00019169,2]
[369705813,1751707839179,-500.0,0.00019169,2]
[369705814,1751707839189,-500.0,0.00019169,2]
[369705815,1751707839198,-500.0,0.00019169,2]
[369705816,1751707839208,-500.0,0.00019169,2]
[369705817,1751707839217,-500.0,0.00019169,2]
[369705818,1751707839227,-500.0,0.00019169,2]
[369705819,1751707839236,-636.53682193,0.00019169,2]
[369705820,1751707839245,-500.0,0.00019169,2]
[369705821,1751707839255,-500.0,0.00019169,2]
[369705822,1751707839263,-500.0,0.00019169,2]
[369705823,1751707839272,-500.0,0.00019169,2]
[369705824,1751707839282,-500.0,0.00019169,2]
[369705825,1751707839290,-500.0,0.00019169,2]
[369705826,1751707839300,-500.0,0.00019169,2]
[369705827,1751707839309,-500.0,0.00019169,2]
[369705828,1751707839319,-500.0,0.00019169,2]
[369705829,1751707839328,-500.0,0.00019169,2]
[369705830,1751707839337,-500.0,0.00019169,2]
[369705831,1751707839346,-500.0,0.00019169,2]
[369705832,1751707839356,-500.0,0.00019169,2]
[369705833,1751707839365,-500.0,0.00019169,2]
[369705834,1751707839374,-500.0,0.00019169,2]
[369705835,1751707839383,-500.0,0.00019169,2]
[369705836,1751707839393,-500.0,0.00019169,2]
[369705837,1751707839402,-500.0,0.00019169,2]
[369705838,1751707839413,-500.0,0.00019169,2]
[369705839,1751707839423,-500.0,0.00019169,2]
[369705840,1751707839432,-500.0,0.00019169,2]
[369705841,1751707839442,-500.0,0.00019169,2]
[369705842,1751707839451,-500.0,0.00019169,2]
[369705843,1751707839461,-500.0,0.00019169,2]
[369705844,1751707839470,-500.0,0.00019169,2]
[369705845,1751707839480,-500.0,0.00019169,2]
[369705846,1751707839489,-500.0,0.00019169,2]
[369705847,1751707839498,-500.0,0.00019169,2]
[369705848,1751707839508,-500.0,0.00019169,2]
[369705849,1751707839517,-500.0,0.00019169,2]
[369705850,1751707839526,-500.0,0.00019169,2]
[369705851,1751707839535,-500.0,0.00019169,2]
[369705852,1751707839545,-500.0,0.00019169,2]
[369705853,1751707839554,-500.0,0.00019169,2]
[369705854,1751707839564,-500.0,0.00019169,2]
[369705855,1751707839573,-500.0,0.00019169,2]
[369705856,1751707839583,-500.0,0.00019169,2]
[369705857,1751707839592,-500.0,0.00019169,2]
[369705858,1751707839601,-500.0,0.00019169,2]
[369705859,1751707839610,-500.0,0.00019169,2]
[369705860,1751707839620,-500.0,0.00019169,2]
[369705861,1751707839629,-500.0,0.00019169,2]
[369705862,1751707839638,-500.0,0.00019169,2]
[369705863,1751707839647,-500.0,0.00019169,2]
[369705864,1751707839657,-500.0,0.00019169,2]
[369705865,1751707839666,-500.0,0.00019169,2]
[369705866,1751707839675,-500.0,0.00019169,2]
[369705867,1751707839684,-500.0,0.00019169,2]
[369705868,1751707839693,-500.0,0.00019169,2]
[369705869,1751707839702,-500.0,0.00019169,2]
[369705870,1751707839711,-500.0,0.00019169,2]
[369705871,1751707839720,-500.0,0.00019169,2]
[369705872,1751707839729,-500.0,0.00019169,2]
[369705873,1751707839738,-297.8878102,0.00019169,2]
[369705874,1751707839747,-500.0,0.00019169,2]
[369705875,1751707839756,-500.0,0.00019169,2]
[369705876,1751707839769,-500.0,0.00019169,2]
[369705877,1751707839778,-500.0,0.00019169,2]
[369705879,1751707839787,-500.0,0.00019169,2]
[369705880,1751707839796,-500.0,0.00019169,2]
[369705881,1751707839805,-500.0,0.00019169,2]
[369705882,1751707839815,-500.0,0.00019169,2]
[369705883,1751707839824,-584.21195289,0.00019169,2]
[369705884,1751707839833,-50000.0,0.0001917,2]
[369705885,1751707839842,-500.0,0.00019173,2]
[369705886,1751707839852,-1000.0,0.00019176,2]
[369705887,1751707839862,-1000.0,0.00019176,2]
[369705888,1751707839871,-1000.0,0.00019176,2]
[369705889,1751707839880,-1000.0,0.00019176,2]
[369705890,1751707839889,-1000.0,0.00019176,2]
[369705891,1751707839898,-1000.0,0.00019176,2]
[369705892,1751707839907,-1000.0,0.00019176,2]
[369705893,1751707839917,-1000.0,0.00019176,2]
[369705894,1751707839926,-1000.0,0.00019176,2]
[369705895,1751707839935,-1000.0,0.00019176,2]
[369705896,1751707839944,-1000.0,0.00019176,2]
[369705897,1751707839953,-1000.0,0.00019176,2]
[369705898,1751707839963,-1000.0,0.00019176,2]
[369705899,1751707839972,-1000.0,0.00019176,2]
[369705900,1751707839981,-1000.0,0.00019176,2]
[369705901,1751707839990,-1000.0,0.00019176,2]
[369705902,1751707840004,-1000.0,0.00019176,2]
[369705903,1751707840013,-1000.0,0.00019176,2]
[369705904,1751707840022,-1000.0,0.00019176,2]
[369705905,1751707840032,-1000.0,0.00019176,2]
[369705906,1751707840041,-1000.0,0.00019176,2]
[369705907,1751707840050,-1000.0,0.00019176,2]
[369705908,1751707840060,-1000.0,0.00019176,2]
[369705909,1751707840069,-770.04153215,0.00019176,2]
[369705910,1751707840078,-460.0,0.00019178,2]
[369705911,1751707840087,-460.97857132,0.00019178,2]
[369705912,1751707840096,-362.74550615,0.00019178,2]
[369705913,1751707840106,-461.33323165,0.00019178,2]
[369705914,1751707840115,-460.0,0.00019178,2]
[369705915,1751707840125,-460.0,0.00019178,2]
[369705916,1751707840134,-460.0,0.00019178,2]
[369705918,1751707840144,-460.62042086,0.00019178,2]
[369705920,1751707840153,-460.0,0.00019178,2]
[369705922,1751707840163,-460.0,0.00019178,2]
[369705924,1751707840172,-460.46105792,0.00019178,2]
[369705926,1751707840181,-460.0,0.00019178,2]
[369705928,1751707840190,-460.0,0.00019178,2]
[369705930,1751707840200,-460.0,0.00019178,2]
[369705932,1751707840209,-460.0,0.00019178,2]
[369705934,1751707840219,-460.0,0.00019178,2]
[369705936,1751707840228,-460.0,0.00019178,2]
[369705938,1751707840238,-460.74220114,0.00019178,2]